fUSD/lending_fUSD_20260227
["ID","MTS","AMOUNT","RATE_DAILY","PERIOD"]
[406831711,1772211080551,-2433.76,0.00046135,120]
[406831712,1772211080560,-2433.76,0.00046135,120]
[406831713,1772211080569,-2433.76,0.00046135,120]
[406831714,1772211080578,-2433.76,0.00046135,120]
[406831715,1772211080587,-2433.76,0.00046135,120]
[406831716,1772211080597,-2433.76,0.00046135,120]
[406831717,1772211080606,-2433.76,0.00046135,120]
[406831718,1772211080616,-2433.76,0.00046135,120]
[406831719,1772211080633,-1106.65853119,0.00046135,120]
[406831720,1772211080653,-1327.10146881,0.00046135,120]
[406831721,1772211080670,-2433.76,0.00046135,120]
[406831722,1772211080688,-2433.76,0.00046135,120]
[406831723,1772211080704,-2433.76,0.00046135,120]
[406831724,1772211080719,-2433.76,0.00046135,120]
[406831725,1772211080735,-2433.76,0.00046135,120]
[406831726,1772211080752,-1409.40594437,0.00046135,120]
[406831727,1772211080875,-1744.6755,7.792e-05,2]
[406831728,1772211081042,-190.39456,0.00045073,120]
[406831729,1772211081051,-190.39456,0.00046135,120]
[406831730,1772211081061,-101.23588,0.00046135,120]
[406831731,1772211081073,-89.15868,0.00046135,120]
[406831732,1772211081082,-1024.35405563,0.00046135,120]
[406831733,1772211081091,-2433.76,0.00046135,120]
[406831734,1772211081101,-500.0,0.00046135,120]
[406831735,1772211081111,-1446.95623683,0.00046135,120]
[406831736,1772211081123,-316.1305,0.00046135,120]
[406831737,1772211081141,-670.67326317,0.00046135,120]
[406831738,1772211081150,-2433.76,0.00046135,120]
[406831739,1772211081159,-2433.76,0.00046135,120]
[406831740,1772211081169,-2433.76,0.00046135,120]
[406831741,1772211081178,-2433.76,0.00046135,120]
[406831742,1772211081187,-2433.82000001,0.00046135,120]
[406831743,1772211081197,-500.0,0.00046135,120]
[406831744,1772211081206,-500.0,0.00046135,120]
[406831745,1772211081216,-500.0,0.00046135,120]
[406831746,1772211081225,-500.0,0.00046135,120]
[406831747,1772211081237,-500.0,0.00046135,120]
[406831748,1772211081247,-500.0,0.00046135,120]
[406831749,1772211081256,-500.0,0.00046135,120]
[406831750,1772211081266,-500.0,0.00046135,120]
[406831751,1772211081275,-500.0,0.00046135,120]
[406831752,1772211081284,-500.0,0.00046135,120]
[406831753,1772211081293,-500.0,0.00046135,120]
[406831754,1772211081303,-500.0,0.00046135,120]
[406831755,1772211081312,-500.0,0.00046135,120]
[406831756,1772211081322,-500.0,0.00046135,120]
[406831757,1772211081332,-500.0,0.00046135,120]
[406831758,1772211081342,-500.0,0.00046135,120]
[406831759,1772211081352,-500.0,0.00046135,120]
[406831760,1772211081363,-502.6,0.00046135,120]
[406831761,1772211081373,-500.0,0.00046135,120]
[406831762,1772211081383,-500.0,0.00046135,120]
[406831763,1772211081392,-151.0,0.00046135,120]
[406831764,1772211081406,-151.0,0.00046135,120]
[406831765,1772211081415,-151.0,0.00046135,120]
[406831766,1772211081425,-151.0,0.00046135,120]
[406831767,1772211081435,-151.0,0.00046135,120]
[406831768,1772211081445,-151.0,0.00046135,120]
[406831769,1772211081455,-151.0,0.00046135,120]
[406831770,1772211081759,-151.0,0.00046135,120]
[406831771,1772211081776,-151.0,0.00046135,120]
[406831772,1772211081794,-151.0,0.00046135,120]
[406831773,1772211081803,-151.0,0.00046135,120]
[406831774,1772211081812,-500.0,0.00046135,120]
[406831775,1772211081821,-151.0,0.00046135,120]
[406831776,1772211081831,-518.5,0.00046135,120]
[406831777,1772211081841,-200.0,0.00046135,30]
[406831778,1772211081850,-151.0,0.00046135,120]
[406831779,1772211081860,-537.6845,0.00046135,120]
[406831780,1772211081871,-207.4,0.00046135,30]
[406831781,1772211081881,-151.0,0.00046135,120]
[406831782,1772211081891,-215.0738,0.00046135,30]
[406831783,1772211081900,-151.0,0.00046135,120]
[406831784,1772211081910,-557.5788265,0.00046135,120]
[406831785,1772211081920,-223.0315306,0.00046135,30]
[406831786,1772211081929,-151.0,0.00046135,120]
[406831787,1772211081938,-578.20924308,0.00046135,120]
[406831788,1772211081948,-231.28369723,0.00046135,30]
[406831789,1772211081957,-151.0,0.00046135,120]
[406831790,1772211081966,-599.60298507,0.00046135,120]
[406831791,1772211081975,-239.84119403,0.00046135,30]
[406831792,1772211081985,-151.0,0.00046135,120]
[406831793,1772211081994,-621.78829552,0.00046135,120]
[406831794,1772211082003,-248.71531821,0.00046135,30]
[406831795,1772211082012,-151.0,0.00046135,120]
[406831796,1772211082021,-644.79446246,0.00046135,120]
[406831797,1772211082030,-257.91778498,0.00046135,30]
[406831798,1772211082039,-151.0,0.00046135,120]
[406831799,1772211082049,-668.65185757,0.00046135,120]
[406831800,1772211082059,-267.46074303,0.00046135,30]
[406831801,1772211082068,-693.3919763,0.00046135,120]
[406831802,1772211082077,-277.35679052,0.00046135,30]
[406831803,1772211082086,-719.04747942,0.00046135,120]
[406831804,1772211082096,-287.61899177,0.00046135,30]
[406831805,1772211082105,-745.65223616,0.00046135,120]
[406831806,1772211082116,-298.26089446,0.00046135,30]
[406831807,1772211082125,-773.2413689,0.00046135,120]
[406831808,1772211082134,-309.29654756,0.00046135,30]
[406831809,1772211082143,-500.0,0.00046135,120]
[406831810,1772211082153,-801.85129955,0.00046135,120]
[406831811,1772211082162,-831.51979763,0.00046135,120]
[406831812,1772211082172,-320.74051982,0.00046135,30]
[406831813,1772211082181,-862.28603014,0.00046135,120]
[406831814,1772211082190,-332.60791905,0.00046135,30]
[406831815,1772211082200,-894.19061326,0.00046135,120]
[406831816,1772211082209,-344.91441206,0.00046135,30]
[406831817,1772211082219,-500.0,0.00046135,120]
[406831818,1772211082228,-927.27566595,0.00046135,120]
[406831819,1772211082238,-357.6762453,0.00046135,30]
[406831820,1772211082246,-518.5,0.00046135,120]
[406831821,1772211082256,-500.0,0.00046135,120]
[406831822,1772211082265,-961.58486559,0.00046135,120]
[406831823,1772211082275,-357.6762453,0.00046135,30]
[406831824,1772211082285,-537.6845,0.00046135,120]
[406831825,1772211082295,-557.5788265,0.00046135,120]
[406831826,1772211082304,-961.58486559,0.00046135,120]
[406831827,1772211082313,-578.20924308,0.00046135,120]
[406831828,1772211082323,-599.60298507,0.00046135,120]
[406831829,1772211082332,-621.78829552,0.00046135,120]
[406831830,1772211082341,-500.0,0.00046135,120]
[406831831,1772211082350,-500.0,0.00046135,120]
[406831832,1772211082359,-502.4634463,0.00046135,120]
[406831833,1772211082372,-500.0,0.00046135,120]
[406831834,1772211082381,-500.0,0.00046135,120]
[406831835,1772211082390,-150.0,0.00046135,120]
[406831836,1772211082404,-2500.61,0.00046135,120]
[406831837,1772211082413,-2500.61,0.00046135,120]
[406831838,1772211082422,-2500.61,0.00046135,120]
[406831839,1772211082431,-2500.61,0.00046135,120]
[406831840,1772211082441,-2500.61,0.00046135,120]
[406831841,1772211082451,-2500.61,0.00046135,120]
[406831842,1772211082459,-2500.61,0.00046135,120]
[406831843,1772211082469,-2500.61,0.00046135,120]
[406831844,1772211082479,-2500.61,0.00046135,120]
[406831845,1772211082488,-2500.61,0.00046135,120]
[406831846,1772211082497,-2500.61,0.00046135,120]
[406831847,1772211082506,-2500.61,0.00046135,120]
[406831848,1772211082516,-2500.61,0.00046135,120]
[406831849,1772211082526,-2500.61,0.00046135,120]
[406831850,1772211082536,-2500.61,0.00046135,120]
[406831851,1772211082546,-2500.61,0.00046135,120]
[406831852,1772211082556,-2500.61,0.00046135,120]
[406831853,1772211082566,-2500.61,0.00046135,120]
[406831854,1772211082575,-2500.61,0.00046135,120]
[406831855,1772211082584,-2500.61,0.00046135,120]
[406831856,1772211082594,-2500.61,0.00046135,120]
[406831857,1772211082604,-2500.61,0.00046135,120]
[406831858,1772211082616,-2500.61,0.00046135,120]
[406831859,1772211082625,-2500.64027883,0.00046135,120]
[406831860,1772211082635,-150.0,0.00046138,2]
[406831861,1772211082644,-391.56886158,0.00046138,60]
[406831862,1772211082653,-437.0,0.00046233,90]
[406831863,1772211082662,-179.2846619,0.0004626,120]
[406831864,1772211082671,-2834.0,0.00046327,16]
[406831865,1772211082681,-150.0,0.0004635,30]
[406831866,1772211082690,-172.00374903,0.0004635,30]
[406831867,1772211082699,-150.0,0.0004635,30]
[406831868,1772211082709,-150.0,0.0004635,30]
[406831869,1772211082718,-176.22011371,0.0004635,30]
[406831870,1772211082728,-150.0,0.0004635,30]
[406831871,1772211082738,-150.0,0.0004635,30]
[406831872,1772211082748,-150.0,0.0004635,30]
[406831873,1772211082758,-150.0,0.0004635,30]
[406831874,1772211082768,-150.0,0.0004635,30]
[406831875,1772211082777,-150.0,0.0004635,30]
[406831876,1772211082786,-150.0,0.0004635,30]
[406831877,1772211082795,-150.0,0.0004635,30]
[406831878,1772211082805,-150.0,0.0004635,30]
[406831879,1772211082814,-150.0,0.0004635,30]
[406831880,1772211082824,-150.0,0.0004635,30]
[406831881,1772211082833,-150.0,0.0004635,30]
[406831882,1772211082843,-1040.2,0.00046377,120]
[406831883,1772211082852,-500.0,0.00046408,120]
[406831884,1772211082864,-150.0,0.00046479,2]
[406831885,1772211082873,-150.0,0.00046495,120]
[406831886,1772211082883,-437.0,0.00046507,90]
[406831887,1772211082892,-159.38,0.00046575,120]
[406831888,1772211082901,-298.6693447,0.00046575,2]
[406831889,1772211082911,-150.0,0.00046584,30]
[406831890,1772211082920,-4049.86,0.000466,30]
[406831891,1772211082929,-125196.0,0.00046633,60]
[406831892,1772211082938,-1571.475,0.000467,120]
[406831893,1772211082947,-1571.47,0.000467,120]
[406831894,1772211082956,-497.04,0.000468,120]
[406831895,1772211082965,-150.0,0.00046818,30]
[406831896,1772211082975,-153.087449,0.00046831,120]
[406831897,1772211082985,-150.0,0.00047,120]
[406831898,1772211082994,-153.0,0.00047,120]
[406831899,1772211083003,-3460.32,0.00047,14]
[406831900,1772211083012,-2957.39,0.00047,14]
[406831901,1772211083021,-4000.0,0.00047,2]
[406831902,1772211083030,-150.0,0.00047052,30]
[406831903,1772211083041,-1040.2,0.00047136,120]
[406831904,1772211083050,-150.0,0.00047286,30]
[406831905,1772211083059,-313.29947845,0.00047391,120]
[406831906,1772211083068,-2000.0,0.000474,2]
[406831907,1772211083077,-509.0,0.00047445,31]
[406831908,1772211083086,-150.0,0.0004752,30]
[406831909,1772211083096,-2000.0,0.00047588,120]
[406831910,1772211083106,-2000.0,0.00047588,120]
[406831911,1772211083118,-2000.0,0.00047588,120]
[406831912,1772211083128,-2000.0,0.00047588,120]
[406831913,1772211083138,-2000.0,0.00047588,120]
[406831914,1772211083147,-2000.0,0.00047588,120]
[406831915,1772211083157,-2000.0,0.00047588,120]
[406831916,1772211083166,-2000.0,0.00047588,120]
[406831917,1772211083175,-2000.0,0.00047588,120]
[406831918,1772211083184,-2000.0,0.00047588,120]
[406831919,1772211083193,-2000.0,0.00047588,120]
[406831920,1772211083202,-2000.0,0.00047588,120]
[406831921,1772211083211,-2000.0,0.00047588,120]
[406831922,1772211083219,-2000.0,0.00047588,120]
[406831923,1772211083229,-2000.0,0.00047588,120]
[406831924,1772211083238,-2000.0,0.00047588,120]
[406831925,1772211083248,-2000.0,0.00047588,120]
[406831926,1772211083257,-2000.0,0.00047588,120]
[406831927,1772211083266,-2000.0,0.00047588,120]
[406831928,1772211083275,-2000.0,0.00047588,120]
[406831929,1772211083284,-2000.0,0.00047588,120]
[406831930,1772211083293,-2000.0,0.00047588,120]
[406831931,1772211083303,-2000.0,0.00047588,120]
[406831932,1772211083312,-2000.0,0.00047588,120]
[406831933,1772211083321,-2000.0,0.00047588,120]
[406831934,1772211083330,-2000.0,0.00047588,120]
[406831935,1772211083339,-2000.0,0.00047588,120]
[406831936,1772211083347,-2000.0,0.00047588,120]
[406831937,1772211083356,-2000.0,0.00047588,120]
[406831938,1772211083367,-2000.0,0.00047588,120]
[406831939,1772211083376,-693.787,0.00047588,120]
[406831940,1772211083385,-171.646,0.00047675,120]
[406831941,1772211083394,-164.0,0.00047682,90]
[406831942,1772211083407,-437.0,0.00047682,90]
[406831943,1772211083416,-169.0,0.00047682,90]
[406831944,1772211083426,-150.0,0.00047755,30]
[406831945,1772211083435,-154.0,0.000478,120]
[406831946,1772211083445,-166.75368673,0.00047808,7]
[406831947,1772211083455,-1000.0,0.00047825,14]
[406831948,1772211083464,-152.8213546,0.00047825,120]
[406831949,1772211083473,-350.0,0.00047849,2]
[406831950,1772211083483,-1040.2,0.00047895,120]
[406831951,1772211083493,-497.04,0.00047966,120]
[406831952,1772211083502,-153.087449,0.00047973,120]
[406831953,1772211083511,-150.0,0.00047989,30]
[406831954,1772211083520,-14687.01212957,0.00047991,60]
[406831955,1772211083533,-3294.0,0.00047991,60]
[406831956,1772211083544,-6913.87290622,0.00047991,60]
[406831957,1772211121558,300.0,7.791e-05,2]
[406831958,1772211123432,9700.01,7.753e-05,2]
[406831959,1772211123459,7359.99,7.753e-05,2]
[406831960,1772211123624,2640.02,7.753e-05,2]
[406831961,1772211123648,10000.01,7.753e-05,2]
[406831962,1772211123670,10000.01,7.753e-05,2]
[406831963,1772211123692,10000.01,7.753e-05,2]
[406831964,1772211123714,10000.01,7.753e-05,2]
[406831965,1772211123736,6719.94,7.753e-05,2]
[406831966,1772211181403,300.0,7.791e-05,2]
[406831967,1772211183940,9218.0,7.753e-05,2]
[406831968,1772211190505,1996.51991674,7.6e-05,3]
[406831969,1772211241334,300.0,7.791e-05,2]
[406831970,1772211241992,150.0,7.791e-05,2]
[406831971,1772211243240,32.01,7.791e-05,2]
[406831972,1772211243264,267.99,7.791e-05,2]
[406831973,1772211268656,9732.02,7.782e-05,2]
[406831974,1772211268677,10000.01,7.782e-05,2]
[406831975,1772211268698,10000.01,7.782e-05,2]
[406831976,1772211268719,10000.01,7.782e-05,2]
[406831977,1772211268741,10000.01,7.782e-05,2]
[406831978,1772211268762,2592.44608018,7.782e-05,2]
[406831979,1772211301198,300.0,7.791e-05,2]
[406831980,1772211301432,300.0,7.791e-05,2]
[406831981,1772211301474,1200.0,7.791e-05,2]
[406831982,1772211301969,300.0,7.791e-05,2]
[406831983,1772211365408,1996.51991674,7.6e-05,3]
[406831984,1772211421322,300.0,7.791e-05,2]
[406831985,1772211422727,150.0,7.791e-05,2]
[406831986,1772211423068,300.0,7.791e-05,2]
[406831987,1772211442933,209.04606965,7.791e-05,2]
[406831988,1772211511265,1200.0,7.791e-05,2]
[406831989,1772211547826,5740.96393035,7.692e-05,2]
[406831990,1772211547851,10000.01,7.692e-05,2]
[406831991,1772211547876,10000.01,7.692e-05,2]
[406831992,1772211547902,10000.01,7.692e-05,2]
[406831993,1772211847924,-254.29880222,7.538e-05,2]
[406831994,1772211847952,-250.0,7.538e-05,2]
[406831995,1772211847983,-1442.538,7.538e-05,2]
[406831996,1772211848140,-3256.3798,7.592e-05,2]
[406831997,1772211848294,-3487.2504,7.592e-05,2]
[406831998,1772211848336,-250.0,7.629e-05,2]
[406831999,1772211848372,-151.0,7.689e-05,2]
[406832000,1772211848404,-150.0,7.69e-05,2]
[406832001,1772211848438,-300.0,7.69e-05,2]
[406832002,1772211848479,-500.0,7.691e-05,2]
[406832003,1772211848759,-500.0,7.691e-05,2]
[406832004,1772211848792,-500.0,7.691e-05,2]
[406832005,1772211848823,-500.0,7.691e-05,2]
[406832006,1772211848855,-500.0,7.691e-05,2]
[406832007,1772211848886,-500.0,7.691e-05,2]
[406832008,1772211848920,-500.0,7.691e-05,2]
[406832009,1772211848952,-500.0,7.691e-05,2]
[406832010,1772211848986,-500.0,7.691e-05,2]
[406832011,1772211849019,-500.0,7.691e-05,2]
[406832012,1772211849054,-500.0,7.691e-05,2]
[406832013,1772211849168,-500.0,7.691e-05,2]
[406832014,1772211849202,-500.0,7.691e-05,2]
[406832015,1772211849235,-500.0,7.691e-05,2]
[406832016,1772211849269,-500.0,7.691e-05,2]
[406832017,1772211849303,-500.0,7.691e-05,2]
[406832018,1772211849337,-500.0,7.691e-05,2]
[406832019,1772211849368,-500.0,7.691e-05,2]
[406832020,1772211849398,-185.60106707,7.691e-05,2]
[406832021,1772211849429,-500.0,7.691e-05,2]
[406832022,1772211849462,-500.0,7.691e-05,2]
[406832023,1772211849492,-128.80786586,7.691e-05,2]
[406832024,1772211849545,-371.19213414,7.691e-05,2]
[406832025,1772211849575,-500.0,7.691e-05,2]
[406832026,1772211849605,-500.0,7.691e-05,2]
[406832027,1772211849634,-500.0,7.691e-05,2]
[406832028,1772211849669,-500.0,7.691e-05,2]
[406832029,1772211849702,-500.0,7.691e-05,2]
[406832030,1772211849734,-500.0,7.691e-05,2]
[406832031,1772211849762,-1200.0,7.691e-05,2]
[406832032,1772211849792,-215.0,7.691e-05,2]
[406832033,1772211893489,10000.01,7.69e-05,2]
[406832034,1772211893512,10000.01,7.69e-05,2]
[406832035,1772211893536,2936.83137874,7.69e-05,2]
[406832036,1772211901312,300.0,7.691e-05,2]
[406832037,1772211901613,1200.0,7.691e-05,2]
[406832039,1772211928798,500.0,7.691e-05,2]
[406832040,1772211928829,500.0,7.691e-05,2]
[406832041,1772211928860,288.25179148,7.691e-05,2]
[406832042,1772211928889,257.10497418,7.691e-05,2]
[406832043,1772211928919,500.0,7.691e-05,2]
[406832044,1772211928960,500.0,7.691e-05,2]
[406832045,1772211929170,500.0,7.691e-05,2]
[406832046,1772211929208,500.0,7.691e-05,2]
[406832047,1772211929238,500.0,7.691e-05,2]
[406832048,1772211929268,500.0,7.691e-05,2]
[406832049,1772211929299,512.59326067,7.691e-05,2]
[406832050,1772211929455,-453000.0,7.692e-05,2]
[406832051,1772211961275,300.0,7.691e-05,2]
[406832052,1772211962435,150.0,7.691e-05,2]
[406832053,1772211962778,300.0,7.691e-05,2]
[406832054,1772211963841,2692.05997367,7.691e-05,2]
[406832055,1772211963863,1857.92699245,7.691e-05,2]
[406832056,1772211963891,1141.74329564,7.691e-05,2]
[406832057,1772211964089,7000.33971191,7.691e-05,2]
[406832058,1772211964111,1679.30091287,7.691e-05,2]
[406832059,1772212025585,8320.70908713,7.592e-05,2]
[406832060,1772212025611,10000.01,7.592e-05,2]
[406832063,1772212081835,300.0,7.591e-05,2]
[406832064,1772212090136,-15000.0,7.592e-05,2]
[406832065,1772212147328,-300.0,7.591e-05,2]
[406832066,1772212147357,-150.0,7.591e-05,2]
[406832067,1772212147385,-300.0,7.591e-05,2]
[406832068,1772212158644,500.0,7.591e-05,2]
[406832069,1772212158689,500.0,7.591e-05,2]
[406832070,1772212158734,500.0,7.591e-05,2]
[406832071,1772212158773,500.0,7.591e-05,2]
[406832072,1772212158814,500.0,7.591e-05,2]
[406832073,1772212158851,500.0,7.591e-05,2]
[406832074,1772212158889,500.0,7.591e-05,2]
[406832075,1772212158926,500.0,7.591e-05,2]
[406832076,1772212158974,500.0,7.591e-05,2]
[406832077,1772212159010,500.0,7.591e-05,2]
[406832078,1772212159047,500.0,7.591e-05,2]
[406832079,1772212159328,500.0,7.591e-05,2]
[406832080,1772212159368,196.91357651,7.591e-05,2]
[406832081,1772212159409,500.0,7.591e-05,2]
[406832082,1772212159449,500.0,7.591e-05,2]
[406832083,1772212159489,500.0,7.591e-05,2]
[406832084,1772212159532,500.0,7.591e-05,2]
[406832085,1772212159570,303.09642349,7.591e-05,2]
[406832086,1772212159599,196.90357651,7.591e-05,2]
[406832087,1772212159642,500.0,7.591e-05,2]
[406832088,1772212159680,500.0,7.591e-05,2]
[406832089,1772212159716,500.0,7.591e-05,2]
[406832090,1772212159759,500.0,7.591e-05,2]
[406832091,1772212159797,500.0,7.591e-05,2]
[406832092,1772212159837,500.0,7.591e-05,2]
[406832093,1772212159875,500.0,7.591e-05,2]
[406832094,1772212159915,500.0,7.591e-05,2]
[406832095,1772212159953,500.0,7.591e-05,2]
[406832096,1772212159994,500.0,7.591e-05,2]
[406832097,1772212160036,500.0,7.591e-05,2]
[406832098,1772212160077,500.0,7.591e-05,2]
[406832099,1772212160117,500.0,7.591e-05,2]
[406832100,1772212160153,500.0,7.591e-05,2]
[406832101,1772212160202,500.0,7.591e-05,2]
[406832102,1772212160243,500.0,7.591e-05,2]
[406832103,1772212160281,500.0,7.591e-05,2]
[406832104,1772212160316,500.0,7.591e-05,2]
[406832105,1772212160353,500.0,7.591e-05,2]
[406832106,1772212160393,303.10642349,7.591e-05,2]
[406832107,1772212160422,196.89357651,7.591e-05,2]
[406832108,1772212160480,500.0,7.591e-05,2]
[406832109,1772212160530,500.0,7.591e-05,2]
[406832110,1772212160581,500.0,7.591e-05,2]
[406832111,1772212160640,500.0,7.591e-05,2]
[406832112,1772212160694,500.0,7.591e-05,2]
[406832113,1772212160739,500.0,7.591e-05,2]
[406832114,1772212160779,500.0,7.591e-05,2]
[406832115,1772212160818,500.0,7.591e-05,2]
[406832116,1772212160857,500.0,7.591e-05,2]
[406832117,1772212160900,500.0,7.591e-05,2]
[406832118,1772212160947,500.0,7.591e-05,2]
[406832119,1772212160989,500.0,7.591e-05,2]
[406832120,1772212176241,500.0,7.591e-05,2]
[406832121,1772212176468,500.0,7.591e-05,2]
[406832122,1772212176501,500.0,7.591e-05,2]
[406832123,1772212176535,500.0,7.591e-05,2]
[406832124,1772212176574,500.0,7.591e-05,2]
[406832125,1772212176608,500.0,7.591e-05,2]
[406832126,1772212176641,500.0,7.591e-05,2]
[406832127,1772212176679,303.11642349,7.591e-05,2]
[406832128,1772212176705,196.88357651,7.591e-05,2]
[406832129,1772212176741,500.0,7.591e-05,2]
[406832130,1772212176775,500.0,7.591e-05,2]
[406832131,1772212176813,500.0,7.591e-05,2]
[406832132,1772212176846,500.0,7.591e-05,2]
[406832133,1772212176877,500.0,7.591e-05,2]
[406832134,1772212176909,500.0,7.591e-05,2]
[406832135,1772212176940,500.0,7.591e-05,2]
[406832136,1772212176972,500.0,7.591e-05,2]
[406832137,1772212177002,500.0,7.591e-05,2]
[406832138,1772212177040,500.0,7.591e-05,2]
[406832139,1772212177084,500.0,7.591e-05,2]
[406832140,1772212177118,500.0,7.591e-05,2]
[406832141,1772212177151,500.0,7.591e-05,2]
[406832142,1772212177183,500.0,7.591e-05,2]
[406832143,1772212177214,500.0,7.591e-05,2]
[406832144,1772212177245,500.0,7.591e-05,2]
[406832145,1772212177276,500.0,7.591e-05,2]
[406832146,1772212177308,500.0,7.591e-05,2]
[406832147,1772212177344,500.0,7.591e-05,2]
[406832148,1772212177379,303.12642349,7.591e-05,2]
[406832149,1772212177403,196.87357651,7.591e-05,2]
[406832150,1772212177434,500.0,7.591e-05,2]
[406832151,1772212177480,500.0,7.591e-05,2]
[406832152,1772212177515,500.0,7.591e-05,2]
[406832153,1772212177549,500.0,7.591e-05,2]
[406832154,1772212177583,500.0,7.591e-05,2]
[406832155,1772212177616,500.0,7.591e-05,2]
[406832156,1772212177650,500.0,7.591e-05,2]
[406832157,1772212177684,500.0,7.591e-05,2]
[406832158,1772212177717,500.0,7.591e-05,2]
[406832159,1772212177755,500.0,7.591e-05,2]
[406832160,1772212177791,500.0,7.591e-05,2]
[406832161,1772212177828,500.0,7.591e-05,2]
[406832162,1772212177863,500.0,7.591e-05,2]
[406832163,1772212177904,500.0,7.591e-05,2]
[406832164,1772212177937,500.0,7.591e-05,2]
[406832165,1772212177970,196.91357652,7.591e-05,2]
[406832166,1772212178002,500.0,7.591e-05,2]
[406832167,1772212178043,500.0,7.591e-05,2]
[406832168,1772212178076,500.0,7.591e-05,2]
[406832169,1772212178112,500.0,7.591e-05,2]
[406832170,1772212178147,106.22284697,7.591e-05,2]
[406832171,1772212191286,-393.77715303,7.591e-05,2]
[406832172,1772212191310,-500.0,7.591e-05,2]
[406832173,1772212191335,-500.0,7.591e-05,2]
[406832174,1772212191362,-500.0,7.591e-05,2]
[406832175,1772212191390,-500.0,7.591e-05,2]
[406832176,1772212191417,-500.0,7.591e-05,2]
[406832177,1772212191442,-500.0,7.591e-05,2]
[406832178,1772212191466,-118606.22284697,7.592e-05,2]
[406832181,1772212232182,-214.06910116,7.591e-05,2]
[406832182,1772212232192,-300.0,7.591e-05,2]
[406832183,1772212232201,-300.0,7.591e-05,2]
[406832185,1772212232211,-232.0,7.591e-05,2]
[406832187,1772212232221,-678.93089884,7.591e-05,2]
[406832190,1772212232235,-521.06910116,7.591e-05,2]
[406832192,1772212232246,-214.0,7.591e-05,2]
[406832193,1772212232255,-1520.78014067,7.591e-05,2]
[406832194,1772212232266,-866.46,7.591e-05,2]
[406832195,1772212232277,-2612.75985933,7.591e-05,2]
[406832196,1772212232288,-1848073.0580659,7.592e-05,2]
[406832197,1772212232297,-52749.4358,7.592e-05,2]
[406832198,1772212232307,-685.5342105,7.592e-05,2]
[406832199,1772212232316,-203.53,7.6e-05,2]
[406832200,1772212232326,-4856.09676581,7.613e-05,2]
[406832201,1772212232336,-1000.0,7.691e-05,2]
[406832202,1772212232345,-4312.84,7.692e-05,2]
[406832203,1772212232354,-999.99,7.692e-05,2]
[406832204,1772212232363,-279.32976556,7.692e-05,2]
[406832205,1772212232373,-150.99,7.692e-05,2]
[406832206,1772212232382,-150.99,7.692e-05,2]
[406832207,1772212232392,-9999.99,7.692e-05,2]
[406832208,1772212232402,-9999.99,7.692e-05,2]
[406832209,1772212232411,-1000.0,7.79e-05,2]
[406832210,1772212232421,-500.0,7.792e-05,2]
[406832211,1772212232430,-233.3,7.8e-05,2]
[406832212,1772212232440,-300.0,7.9e-05,2]
[406832213,1772212232449,-9460.07140544,8e-05,2]
[406832215,1772212232459,-600.0,8e-05,2]
[406832217,1772212232468,-1242.537912,8.178e-05,2]
[406832219,1772212232478,-166.66,8.254e-05,2]
[406832221,1772212232488,-299.99,8.254e-05,2]
[406832223,1772212232498,-4792.5,8.302e-05,2]
[406832225,1772212232507,-255.0,8.35e-05,2]
[406832227,1772212232516,-197.0,8.35e-05,2]